[Event "DLM Youth 2024"]
[Site "Tuebingen"]
[Date "2024.10.04"]
[Round "3"]
[White "Bundan, Edward"]
[Black "Goepfert, Gregor"]
[Result "1-0"]
[ECO "C78"]
[WhiteElo "1952"]
[BlackElo "1759"]
[Annotator "RC"]
[PlyCount "113"]
[EventDate "2024.10.03"]
[EventType "team-swiss"]
[EventRounds "7"]
[EventCountry "GER"]
[SourceTitle "playchess.com"]
[Source "ChessBase"]
[SourceQuality "1"]
[TimeControl "40/5400+30:1800+30"]

1. e4 {[%emt 0:00:03]} e5 {[%emt 0:00:09]} 2. Nf3 {[%emt 0:00:09]} Nc6 {[%emt 0:00:03]} 3. Bb5 {[%emt 0:00:08]} a6 {[%emt 0:00:52]} 4. Ba4 {[%emt 0:00:06]} Nf6 {[%emt 0:00:09]} 5. d3 {[%emt 0:00:27]} b5 {[%emt 0:00:45]} 6. Bb3 {[%emt 0:00:09]} Bc5 {[%emt 0:01:40]} 7. O-O {[%emt 0:00:25]} d6 {[%emt 0:01:48]} 8. c3 {[%emt 0:00:20]} O-O {[%emt 0:00:13]} 9. h3 {[%emt 0:00:29]} h6 {[%emt 0:00:20]} 10. Re1 {[%emt 0:00:23]} Re8 {[%emt 0:02:32]} 11. Nbd2 {[%emt 0:00:42]} Be6 {[%emt 0:04:33]} 12. Bc2 {[%emt 0:01:53]} Qd7 {[%emt 0:03:34]} 13. Nf1 {[%emt 0:01:07]} d5 {[%emt 0:06:43]} 14. d4 {[%emt 0:08:21]} Bd6 {[%emt 0:08:30]} 15. Ng3 {[%emt 0:04:16]} Rad8 {[%emt 0:08:28]} 16. dxe5 {[%emt 0:02:39]} Nxe5 {[%emt 0:19:00]} 17. Nxe5 {[%emt 0:00:28]} Bxe5 {[%emt 0:00:15]} 18. f4 {[%emt 0:00:11]} Bd6 {[%emt 0:02:00]} 19. e5 {[%emt 0:01:01]} Bc5+ {[%emt 0:04:33]} 20. Be3 {[%emt 0:00:55]} Bxe3+ {[%emt 0:01:39]} 21. Rxe3 {[%emt 0:00:15]} Ne4 {[%emt 0:01:46]} 22. Bxe4 {[%emt 0:00:57]} dxe4 {[%emt 0:00:16]} 23. Qxd7 {[%emt 0:00:23]} Rxd7 {[%emt 0:01:06]} 24. Nxe4 {[%emt 0:00:21]} Red8 {[%emt 0:02:29]} 25. Ree1 {[%emt 0:01:54]} Bf5 {[%emt 0:11:55]} 26. Ng3 {[%emt 0:01:17]} Bc2 {[%emt 0:02:25]} 27. Nf1 {[%emt 0:01:12]} c5 {[%emt 0:02:34]} 28. Rac1 {[%emt 0:02:10]} Bd3 {[%emt 0:00:39]} 29. Nd2 {[%emt 0:07:27]} Kf8 {[%emt 0:02:03]} 30. Nf3 {[%emt 0:01:39]} Ke7 {[%emt 0:01:06]} 31. Rcd1 {[%emt 0:01:50]} h5 {[%emt 0:02:17]} 32. Rd2 {[%emt 0:01:58]} Kf8 {[%emt 0:01:38]} 33. Red1 {[%emt 0:00:28]} c4 {[%emt 0:01:13]} 34. Nd4 {[%emt 0:00:24]} Rc8 {[%emt 0:01:31]} 35. a3 {[%emt 0:01:01]} Ke7 {[%emt 0:01:08]} 36. Kf2 {[%emt 0:00:46]} g6 {[%emt 0:00:31]} 37. Ke3 {[%emt 0:01:10]} Ke8 {[%emt 0:02:36]} 38. Nf3 {[%emt 0:00:42]} Rcd8 {[%emt 0:00:25]} 39. Ne1 {[%emt 0:00:21]} Bf5 {[%emt 0:00:36]} 40. Rxd7 {[%emt 0:00:31]} Rxd7 {[%emt 0:00:22]} 41. Rxd7 {[%emt 0:30:49]} Kxd7 {[%emt 0:30:09]} 42. h4 {[%emt 0:00:49]} Kc6 {[%emt 0:00:56]} 43. Kd4 {[%emt 0:00:13]} Bb1 {[%emt 0:01:59]} 44. Nf3 {[%emt 0:01:41]} Bf5 {[%emt 0:00:22]} 45. Ng5 {[%emt 0:01:13]} Be6 {[%emt 0:00:21]} 46. Nh7 {[%emt 0:01:23]} Bg4 {[%emt 0:01:03]} 47. Nf6 {[%emt 0:00:33]} Bf5 {[%emt 0:00:20]} 48. Nd5 {[%emt 0:10:44]} Be6 {[%emt 0:01:45]} 49. Nf6 {[%emt 0:06:10]} Bf5 {[%emt 0:00:00]} 50. Nh7 {[%emt 0:00:00]} Bg4 {[%emt 0:00:00]} 51. Ng5 {[%emt 0:00:00]} Be6 {[%emt 0:00:00]} 52. Nxe6 {[%emt 0:00:00]} fxe6 {[%emt 0:00:00]} 53. Ke3 {[%emt 0:00:00]} Kd5 {[%emt 0:00:00]} 54. Kf3 {[%emt 0:00:00]} Kc5 {[%emt 0:00:00]} 55. g4 {[%emt 0:01:31]} Kd5 {[%emt 0:00:00]} 56. gxh5 {[%emt 0:01:31]} gxh5 {[%emt 0:00:00]} 57. Ke3 {[%emt 0:00:35]} 1-0

[Event "DLM Youth 2024"]
[Site "Tuebingen"]
[Date "2024.10.04"]
[Round "3"]
[White "Steinbrenner, Peter"]
[Black "Huppert, Anna"]
[Result "1-0"]
[ECO "E01"]
[WhiteElo "1952"]
[BlackElo "1661"]
[Annotator "RC"]
[PlyCount "45"]
[EventDate "2024.10.03"]
[EventType "team-swiss"]
[EventRounds "7"]
[EventCountry "GER"]
[SourceTitle "playchess.com"]
[Source "ChessBase"]
[SourceQuality "1"]
[TimeControl "40/5400+30:1800+30"]

1. Nf3 {[%emt 0:00:10]} Nf6 {[%emt 0:00:45]} 2. g3 {[%emt 0:00:14]} d5 {[%emt 0:00:52]} 3. Bg2 {[%emt 0:00:27]} Nc6 {[%emt 0:02:43]} 4. d4 {[%emt 0:00:44]} e6 {[%emt 0:12:34]} 5. O-O {[%emt 0:00:45]} Bd6 {[%emt 0:01:34]} 6. c4 {[%emt 0:00:29]} b6 {[%emt 0:07:49]} 7. Nc3 {[%emt 0:01:13]} Bb7 {[%emt 0:06:02]} 8. Nb5 {[%emt 0:01:57]} O-O {[%emt 0:16:46]} 9. b3 {[%emt 0:01:58]} e5 {[%emt 0:09:45]} 10. cxd5 {[%emt 0:04:09]} Nxd5 {[%emt 0:01:52]} 11. Bb2 {[%emt 0:01:41]} Re8 {[%emt 0:04:35]} 12. Nxd6 {[%emt 0:02:14]} cxd6 {[%emt 0:02:20]} 13. e4 {[%emt 0:01:34]} Nf6 {[%emt 0:02:22]} 14. Re1 {[%emt 0:01:36]} exd4 {[%emt 0:08:37]} 15. Nxd4 {[%emt 0:00:30]} d5 {[%emt 0:03:53]} 16. Nf5 {[%emt 0:02:03]} g6 {[%emt 0:05:09]} 17. Nh6+ {[%emt 0:00:36]} Kf8 {[%emt 0:02:19]} 18. e5 {[%emt 0:02:10]} Ng8 {[%emt 0:01:44]} 19. Nxg8 {[%emt 0:01:30]} Kxg8 {[%emt 0:00:03]} 20. Bxd5 {[%emt 0:00:36]} Qe7 {[%emt 0:02:33]} 21. e6 {[%emt 0:01:43]} f5 {[%emt 0:02:52]} 22. Bxc6 {[%emt 0:00:20]} Bxc6 {[%emt 0:00:05]} 23. Qd4 {[%emt 0:00:08]} 1-0

[Event "DLM Youth 2024"]
[Site "Tuebingen"]
[Date "2024.10.04"]
[Round "3"]
[White "Sickmann, Lisa"]
[Black "Stehning, Toni"]
[Result "1-0"]
[ECO "C83"]
[WhiteElo "1946"]
[BlackElo "1817"]
[Annotator "RC"]
[PlyCount "44"]
[EventDate "2024.10.03"]
[EventType "team-swiss"]
[EventRounds "7"]
[EventCountry "GER"]
[SourceTitle "playchess.com"]
[Source "ChessBase"]
[SourceQuality "1"]
[TimeControl "40/5400+30:1800+30"]

1. e4 {[%emt 0:00:03]} e5 {[%emt 0:00:11]} 2. Nf3 {[%emt 0:00:08]} Nc6 {[%emt 0:00:07]} 3. Bb5 {[%emt 0:00:03]} a6 {[%emt 0:00:06]} 4. Ba4 {[%emt 0:00:10]} Nf6 {[%emt 0:00:06]} 5. O-O {[%emt 0:00:04]} Nxe4 {[%emt 0:00:17]} 6. d4 {[%emt 0:00:09]} b5 {[%emt 0:00:10]} 7. Bb3 {[%emt 0:00:05]} d5 {[%emt 0:00:08]} 8. dxe5 {[%emt 0:00:06]} Be6 {[%emt 0:00:06]} 9. Be3 {[%emt 0:00:06]} Be7 {[%emt 0:00:10]} 10. c3 {[%emt 0:00:07]} O-O {[%emt 0:00:35]} 11. Nbd2 {[%emt 0:00:20]} Bg4 {[%emt 0:01:06]} 12. Bf4 {[%emt 0:16:39]} Nxd2 {[%emt 0:22:21]} 13. Qxd2 {[%emt 0:00:14]} Bxf3 {[%emt 0:02:29]} 14. gxf3 {[%emt 0:00:06]} d4 {[%emt 0:00:27]} 15. Rad1 {[%emt 0:00:49]} Bc5 {[%emt 0:01:37]} 16. Qc2 {[%emt 0:03:25]} Qe7 {[%emt 0:03:16]} 17. Qe4 {[%emt 0:00:48]} Na5 {[%emt 0:07:50]} 18. Bc2 {[%emt 0:01:02]} f5 {[%emt 0:00:00]} 19. exf6 {[%emt 0:06:43]} Qxe4 {[%emt 0:34:10]} 20. Bxe4 {[%emt 0:00:09]} Rae8 {[%emt 0:00:25]} 21. b4 {[%emt 0:00:33]} Rxf6 {[%emt 0:22:38]} 22. Bxc7 {[%emt 0:00:25]} Rxe4 {[%emt 0:01:44]} 1-0

[Event "DLM Youth 2024"]
[Site "Tuebingen"]
[Date "2024.10.04"]
[Round "3"]
[White "Peglau, Paul David"]
[Black "Yin, Vito"]
[Result "1/2-1/2"]
[ECO "E41"]
[WhiteElo "1943"]
[BlackElo "1859"]
[Annotator "NA RC"]
[PlyCount "144"]
[EventDate "2024.10.03"]
[EventType "team-swiss"]
[EventRounds "7"]
[EventCountry "GER"]
[SourceTitle "playchess.com"]
[Source "ChessBase"]
[SourceQuality "1"]
[TimeControl "40/5400+30:1800+30"]

1. d4 {[%emt 0:00:03]} Nf6 {[%emt 0:00:07]} 2. c4 {[%emt 0:00:07]} e6 {[%emt 0:00:03]} 3. Nc3 {[%emt 0:00:18]} d5 {[%emt 0:00:10]} 4. Nf3 {[%emt 0:00:07]} Bb4 {[%emt 0:01:16]} 5. e3 {[%emt 0:00:53]} c5 {[%emt 0:00:10]} 6. cxd5 {[%emt 0:04:51]} Nxd5 {[%emt 0:02:12] E41: Nimzo-Indian: Rubinstein: 4...c5 5 Bd3, including Hübner Variation.} 7. Bd2 {[%emt 0:02:42]} cxd4 {[%emt 0:02:11]} 8. Nxd5 {[%emt 0:07:31]} Bxd2+ {[%emt 0:00:26]} 9. Qxd2 {[%emt 0:01:23]} Qxd5 {[%emt 0:00:41]} 10. Qxd4 {[%emt 0:04:31]} O-O {[%emt 0:10:01]} 11. Qxd5 {[%emt 0:02:16]} exd5 {[%emt 0:00:02]} 12. Be2 {[%emt 0:02:17]} Nc6 {[%emt 0:00:36]} 13. O-O {[%emt 0:01:19]} Bf5 {[%emt 0:02:20]} 14. Rfd1 {[%emt 0:02:20]} Rad8 {[%emt 0:01:00]} 15. h3 {[%emt 0:08:21]} Rfe8 {[%emt 0:09:21]} 16. Nd4 {[%emt 0:02:26]} Bg6 {[%emt 0:01:01]} 17. Rac1 {[%emt 0:11:45]} h6 {[%emt 0:14:16]} 18. Bf3 {[%emt 0:08:32]} Nb4 {[%emt 0:19:43]} 19. Rc7 {[%emt 0:12:20]} Rb8 {[%emt 0:02:57]} 20. Nb5 {[%emt 0:10:06]} Bd3 {[%emt 0:09:43]} 21. Nd6 {[%emt 0:02:36]} Re6 {[%emt 0:01:28]} 22. Rxb7 {[%emt 0:04:10]} Rxb7 {[%emt 0:04:56]} 23. Nxb7 {[%emt 0:00:04]} Bc2 {[%emt 0:02:34]} 24. Rd2 {[%emt 0:02:26]} Rb6 {[%emt 0:01:19]} 25. Na5 {[%emt 0:03:50]} Be4 {[%emt 0:02:31]} 26. a3 {[%emt 0:04:33]} Bxf3 {[%emt 0:03:41]} 27. gxf3 {[%emt 0:00:22]} Na6 {[%emt 0:00:28]} 28. b4 {[%emt 0:00:46]} Nc7 {[%emt 0:00:08]} 29. Rc2 {[%emt 0:01:25]} Nb5 {[%emt 0:01:15]} 30. a4 {[%emt 0:00:33]} Na3 {[%emt 0:00:01]} 31. Rb2 {[%emt 0:00:36]} f5 {[%emt 0:00:53]} 32. b5 {[%emt 0:00:28]} a6 {[%emt 0:00:22]} 33. Ra2 {[%emt 0:00:31]} Nb1 {[%emt 0:01:50]} 34. bxa6 {[%emt 0:00:29]} Rxa6 {[%emt 0:00:10]} 35. Rb2 {[%emt 0:00:33]} Nc3 {[%emt 0:00:53]} 36. Rb8+ {[%emt 0:00:28]} Kh7 {[%emt 0:00:57]} 37. Nb3 {[%emt 0:00:29]} Nxa4 {[%emt 0:00:54]} 38. Rb5 {[%emt 0:00:30]} Rb6 {[%emt 0:02:04]} 39. Rxb6 {[%emt 0:00:28]} Nxb6 {[%emt 0:00:02]} 40. Kg2 {[%emt 0:00:30]} g5 {[%emt 0:00:35]} 41. Kg3 {[%emt 0:01:42]} Kg6 {[%emt 0:00:50]} 42. f4 {[%emt 0:00:58]} Nc4 {[%emt 0:00:42]} 43. fxg5 {[%emt 0:01:58]} hxg5 {[%emt 0:00:11]} 44. h4 {[%emt 0:01:48]} Nd6 {[%emt 0:01:48]} 45. hxg5 {[%emt 0:00:52]} Kxg5 {[%emt 0:01:54]} (45... Ne4+ $11 46. Kf3 Kxg5) 46. f4+ {[%emt 0:01:55]} Kf6 {[%emt 0:01:12]} 47. Nd4 $11 {[%emt 0:00:22]} Nc4 {[%emt 0:05:51]} 48. Kf3 {[%emt 0:00:15]} Nd6 {[%emt 0:03:02]} 49. Ke2 {[%emt 0:00:12]} Ne4 {[%emt 0:02:28]} 50. Kd3 {[%emt 0:00:27]} Nc5+ {[%emt 0:02:46]} 51. Kc3 {[%emt 0:00:52]} Ne4+ {[%emt 0:06:54]} 52. Kb4 {[%emt 0:00:35]} Nd6 {[%emt 0:00:08]} 53. Kc5 {[%emt 0:01:44]} Nc4 {[%emt 0:00:11]} 54. Nc2 {[%emt 0:00:35]} Ke6 {[%emt 0:01:11]} 55. Kc6 {[%emt 0:01:11]} Na5+ {[%emt 0:01:12]} 56. Kb5 {[%emt 0:01:18]} Nc4 {[%emt 0:08:35]} 57. Kc5 {[%emt 0:00:54]} Nd2 {[%emt 0:00:54]} 58. Nd4+ {[%emt 0:00:40]} Kf6 {[%emt 0:00:03]} 59. Kxd5 {[%emt 0:00:31]} Nf1 {[%emt 0:00:21]} 60. Nc2 {[%emt 0:00:48]} Ng3 {[%emt 0:00:08]} 61. Nb4 {[%emt 0:02:17]} Nf1 {[%emt 0:00:23]} 62. Kd4 {[%emt 0:00:10]} Ke6 {[%emt 0:01:15]} 63. Nd3 {[%emt 0:01:01]} Kd6 {[%emt 0:01:53]} 64. Ne5 {[%emt 0:01:23]} Ke6 {[%emt 0:00:17]} 65. Nf3 {[%emt 0:00:28]} Kf6 {[%emt 0:00:14]} 66. Ng5 {[%emt 0:00:16]} Kg6 {[%emt 0:00:56]} 67. Kd3 {[%emt 0:01:01]} Ng3 {[%emt 0:00:20]} 68. Kd2 {[%emt 0:00:43]} Kh5 {[%emt 0:00:44]} 69. Ke1 {[%emt 0:00:56]} Kg4 {[%emt 0:00:51]} 70. Kf2 {[%emt 0:00:59]} Nh5 {[%emt 0:00:23]} 71. Nf7 {[%emt 0:00:30]} Nxf4 {[%emt 0:00:41]} 72. Ne5+ {[%emt 0:00:36]} Kg5 {[%emt 0:00:09]} 1/2-1/2

[Event "DLM Youth 2024"]
[Site "Tuebingen"]
[Date "2024.10.04"]
[Round "3"]
[White "Kovalskyy, Alicia"]
[Black "Geist, Tim"]
[Result "0-1"]
[ECO "B53"]
[WhiteElo "1908"]
[BlackElo "1977"]
[Annotator "RC"]
[PlyCount "76"]
[EventDate "2024.10.03"]
[EventType "team-swiss"]
[EventRounds "7"]
[EventCountry "GER"]
[SourceTitle "playchess.com"]
[Source "ChessBase"]
[SourceQuality "1"]
[TimeControl "40/5400+30:1800+30"]

1. e4 {[%emt 0:00:01]} c5 {[%emt 0:00:44]} 2. Nf3 {[%emt 0:00:05]} d6 {[%emt 0:00:17]} 3. d4 {[%emt 0:00:04]} cxd4 {[%emt 0:00:06]} 4. Qxd4 {[%emt 0:00:05]} Nc6 {[%emt 0:02:42]} 5. Bb5 {[%emt 0:00:39]} Bd7 {[%emt 0:00:13]} 6. Bxc6 {[%emt 0:00:04]} Bxc6 {[%emt 0:00:10]} 7. c4 {[%emt 0:00:05]} Nf6 {[%emt 0:00:53]} 8. Nc3 {[%emt 0:00:22]} g6 {[%emt 0:01:42]} 9. O-O {[%emt 0:00:16]} Bg7 {[%emt 0:00:06]} 10. Qd3 {[%emt 0:00:02]} O-O {[%emt 0:04:51]} 11. Nd4 {[%emt 0:02:45]} Nd7 {[%emt 0:04:41]} 12. Rd1 {[%emt 0:00:06]} Rc8 {[%emt 0:01:51]} 13. b3 {[%emt 0:06:41]} Nc5 {[%emt 0:03:22]} 14. Qe2 {[%emt 0:01:00]} Bd7 {[%emt 0:11:45]} 15. Bb2 {[%emt 0:02:12]} h5 {[%emt 0:01:23]} 16. Nd5 {[%emt 0:04:49]} Re8 {[%emt 0:02:14]} 17. Rac1 {[%emt 0:06:10]} e6 {[%emt 0:02:24]} 18. Nc3 {[%emt 0:03:33]} a6 {[%emt 0:06:20]} 19. Qd2 {[%emt 0:08:11]} Kh7 {[%emt 0:03:54]} 20. Nc2 {[%emt 0:21:23]} Bc6 {[%emt 0:07:35]} 21. f3 {[%emt 0:02:42]} Qb6 {[%emt 0:02:47]} 22. Qf2 {[%emt 0:02:03]} Qc7 {[%emt 0:06:28]} 23. Ne3 {[%emt 0:04:13]} Bh6 {[%emt 0:04:20]} 24. Rc2 {[%emt 0:02:34]} Qe7 {[%emt 0:02:53]} 25. Nf1 {[%emt 0:07:46]} b5 {[%emt 0:04:23]} 26. cxb5 {[%emt 0:02:12]} axb5 {[%emt 0:00:15]} 27. Qd4 {[%emt 0:02:03]} Red8 {[%emt 0:02:45]} 28. Ne2 {[%emt 0:02:30]} e5 {[%emt 0:01:08]} 29. Qf2 {[%emt 0:01:44]} b4 {[%emt 0:02:34]} 30. Bc1 {[%emt 0:01:59]} Bg7 {[%emt 0:01:29]} 31. Ne3 {[%emt 0:01:07]} Bb7 {[%emt 0:03:04]} 32. Qe1 {[%emt 0:01:33]} Bh6 {[%emt 0:04:34]} 33. Rc4 {[%emt 0:01:13]} Ba6 {[%emt 0:02:17]} 34. Qxb4 {[%emt 0:03:59]} Bxc4 {[%emt 0:00:57]} 35. Qxc4 {[%emt 0:00:34]} Ne6 {[%emt 0:00:58]} 36. Qb4 {[%emt 0:00:50]} Rxc1 {[%emt 0:00:14]} 37. Nxc1 {[%emt 0:00:30]} Bxe3+ {[%emt 0:00:04]} 38. Kf1 {[%emt 0:00:24]} Qh4 {[%emt 0:01:36]} 0-1

[Event "DLM Youth 2024"]
[Site "Tuebingen"]
[Date "2024.10.04"]
[Round "3"]
[White "Bezsonna, Polina"]
[Black "Aguike, Toshiya"]
[Result "1-0"]
[ECO "C56"]
[WhiteElo "1905"]
[BlackElo "1719"]
[Annotator "NA RC"]
[PlyCount "65"]
[EventDate "2024.10.03"]
[EventType "team-swiss"]
[EventRounds "7"]
[EventCountry "GER"]
[SourceTitle "playchess.com"]
[Source "ChessBase"]
[SourceQuality "1"]
[TimeControl "40/5400+30:1800+30"]

1. e4 {[%emt 0:00:01]} e5 {[%emt 0:00:07]} 2. Nf3 {[%emt 0:00:05]} Nc6 {[%emt 0:00:08]} 3. Bc4 {[%emt 0:00:07]} Nf6 {[%emt 0:00:11]} 4. d4 {[%emt 0:00:19]} exd4 {[%emt 0:00:08]} 5. e5 {[%emt 0:00:34]} d5 {[%emt 0:00:53]} 6. Bb5 {[%emt 0:00:46]} Ne4 {[%emt 0:00:16]} 7. Nxd4 {[%emt 0:00:22]} Bd7 {[%emt 0:00:25]} 8. Bxc6 {[%emt 0:00:20]} bxc6 {[%emt 0:00:17]} 9. O-O {[%emt 0:01:55]} Bc5 {[%emt 0:00:18]} 10. Be3 {[%emt 0:00:31]} Bb6 {[%emt 0:00:08]} 11. f3 {[%emt 0:01:39]} Ng5 {[%emt 0:00:20]} 12. f4 {[%emt 0:03:33]} Ne4 {[%emt 0:03:05]} 13. c3 {[%emt 0:03:59]} c5 {[%emt 0:01:27]} 14. Nf3 {[%emt 0:03:48]} Bf5 {[%emt 0:03:34]} 15. Nbd2 {[%emt 0:15:22]} h6 {[%emt 0:01:23]} 16. Nxe4 {[%emt 0:01:36]} Bxe4 {[%emt 0:00:08]} 17. Kh1 $11 {[%emt 0:11:06]} O-O {[%emt 0:03:19]} 18. Qd2 {[%emt 0:02:04]} Qd7 {[%emt 0:02:16]} 19. Rad1 {[%emt 0:00:48]} Rad8 {[%emt 0:00:25]} 20. Qf2 {[%emt 0:01:57]} Qc6 {[%emt 0:02:03]} 21. b4 {[%emt 0:04:08]} cxb4 {[%emt 0:06:28]} 22. cxb4 {[%emt 0:00:53]} Qc4 {[%emt 0:01:17]} 23. Bxb6 {[%emt 0:05:46]} axb6 {[%emt 0:00:10]} 24. Rc1 {[%emt 0:03:58]} Qxb4 {[%emt 0:00:38]} 25. Rxc7 {[%emt 0:00:06]} d4 {[%emt 0:01:53]} 26. f5 {[%emt 0:15:39]} Bxf3 {[%emt 0:02:56]} 27. Qxf3 {[%emt 0:00:55]} d3 {[%emt 0:00:12]} 28. f6 {[%emt 0:05:19]} g6 {[%emt 0:01:29]} 29. e6 {[%emt 0:02:53]} fxe6 {[%emt 0:02:29]} 30. Rg7+ {[%emt 0:01:29]} Kh8 {[%emt 0:01:42]} 31. Qb7 {[%emt 0:00:46]} d2 {[%emt 0:14:35]} 32. Rh7+ {[%emt 0:00:19]} Kg8 {[%emt 0:00:03]} 33. Qg7# {[%emt 0:00:08]} 1-0

[Event "DLM Youth 2024"]
[Site "Tuebingen"]
[Date "2024.10.04"]
[Round "3"]
[White "Schulz, Tim"]
[Black "Udelnov, Valentin"]
[Result "0-1"]
[ECO "D00"]
[WhiteElo "1901"]
[BlackElo "2045"]
[Annotator "NA RC"]
[PlyCount "110"]
[EventDate "2024.10.03"]
[EventType "team-swiss"]
[EventRounds "7"]
[EventCountry "GER"]
[SourceTitle "playchess.com"]
[Source "ChessBase"]
[SourceQuality "1"]
[TimeControl "40/5400+30:1800+30"]

1. d4 {[%emt 0:00:12]} Nf6 {[%emt 0:00:10]} 2. Nf3 {[%emt 0:00:15]} g6 {[%emt 0:00:07]} 3. Nc3 {[%emt 0:00:51]} d5 {[%emt 0:02:06]} 4. Bf4 {[%emt 0:00:28]} Bg7 {[%emt 0:00:07]} 5. e3 {[%emt 0:00:14]} O-O {[%emt 0:00:15]} 6. Be2 {[%emt 0:00:23]} c5 {[%emt 0:01:33]} 7. Ne5 {[%emt 0:00:22]} Nc6 {[%emt 0:02:25]} 8. O-O {[%emt 0:00:42]} cxd4 {[%emt 0:02:05]} 9. exd4 {[%emt 0:00:11]} Bf5 {[%emt 0:00:13]} 10. Qd2 {[%emt 0:01:16] D00: 1 d4 d5: Ongebruikelijke Varianten.} Rc8 {[%emt 0:01:55]} 11. Rad1 {[%emt 0:01:00]} a6 {[%emt 0:05:56]} 12. h3 {[%emt 0:02:16]} b5 {[%emt 0:02:33]} 13. a3 {[%emt 0:07:21]} Qb6 {[%emt 0:04:29]} 14. Nxc6 {[%emt 0:03:25]} Qxc6 {[%emt 0:01:57]} 15. g4 {[%emt 0:01:51]} Be6 {[%emt 0:04:10]} 16. Kh2 {[%emt 0:05:56]} Nd7 {[%emt 0:04:26]} 17. Bh6 {[%emt 0:05:19]} Qd6+ {[%emt 0:03:22]} 18. Bf4 {[%emt 0:04:47]} Qc6 {[%emt 0:00:07]} 19. Bh6 {[%emt 0:06:31]} Nb6 {[%emt 0:02:01]} 20. Bxg7 {[%emt 0:01:13]} Kxg7 {[%emt 0:00:02]} 21. Qg5 {[%emt 0:02:21]} f6 {[%emt 0:00:53]} 22. Qe3 {[%emt 0:03:01]} Rfe8 {[%emt 0:01:49]} 23. h4 {[%emt 0:04:17]} Bf7 {[%emt 0:06:18]} 24. g5 {[%emt 0:03:04]} e5 {[%emt 0:07:38]} 25. Kg2 {[%emt 0:11:00]} f5 {[%emt 0:15:18]} 26. Rh1 {[%emt 0:03:15]} Kg8 {[%emt 0:03:11]} 27. Kg1 {[%emt 0:02:50]} e4 {[%emt 0:01:29]} 28. h5 {[%emt 0:02:49]} Qd6 {[%emt 0:02:12]} 29. hxg6 {[%emt 0:02:06]} Bxg6 {[%emt 0:00:35]} 30. Qh3 {[%emt 0:04:27]} f4 {[%emt 0:02:57]} 31. Bg4 {[%emt 0:01:01]} Rc7 {[%emt 0:00:10]} 32. Qh6 {[%emt 0:02:22]} f3 {[%emt 0:02:32]} 33. Bf5 {[%emt 0:03:06]} Rg7 {[%emt 0:02:46]} 34. Bxg6 {[%emt 0:05:05]} Qxg6 {[%emt 0:00:13]} 35. Qxg6 {[%emt 0:00:15]} Rxg6 {[%emt 0:00:03]} 36. Rh5 {[%emt 0:00:24]} Rf8 {[%emt 0:00:12]} 37. Kh2 {[%emt 0:00:17]} Rf5 {[%emt 0:00:05]} 38. Rg1 {[%emt 0:00:31]} Nc4 {[%emt 0:00:31]} 39. Nd1 {[%emt 0:00:31]} Re6 {[%emt 0:11:38]} 40. b3 {[%emt 0:06:47]} e3 {[%emt 0:02:35]} 41. Rh6 {[%emt 0:10:09]} exf2 $17 {[%emt 0:07:47]} 42. Rxe6 {[%emt 0:15:48]} fxg1=Q+ {[%emt 0:00:11]} 43. Kxg1 {[%emt 0:00:19]} Rxg5+ {[%emt 0:06:49]} 44. Kf2 {[%emt 0:00:19]} Nd2 {[%emt 0:00:47]} 45. Ne3 {[%emt 0:06:56]} Rh5 {[%emt 0:02:47]} 46. Ng4 {[%emt 0:02:02]} Rh4 {[%emt 0:01:12]} 47. Nh6+ {[%emt 0:02:52]} Kf8 {[%emt 0:02:18]} 48. Kg3 {[%emt 0:00:41]} Rh1 {[%emt 0:01:59]} 49. Rxa6 {[%emt 0:00:54]} Rg1+ {[%emt 0:00:29]} 50. Kf2 {[%emt 0:00:21]} Rg2+ {[%emt 0:03:14]} 51. Ke3 {[%emt 0:00:18]} Re2+ {[%emt 0:00:18]} 52. Kd3 {[%emt 0:00:15]} Ne4 {[%emt 0:04:12]} 53. Ng4 {[%emt 0:01:18]} Rg2 {[%emt 0:00:55]} 54. Ne5 {[%emt 0:00:37]} f2 {[%emt 0:00:26]} 55. Ke2 {[%emt 0:00:18]} Ng3+ {[%emt 0:00:06]} 0-1

[Event "DLM Youth 2024"]
[Site "Tuebingen"]
[Date "2024.10.04"]
[Round "3"]
[White "Jacobasch, Ronja"]
[Black "Rafikova, Ailin"]
[Result "1/2-1/2"]
[ECO "A05"]
[WhiteElo "1879"]
[BlackElo "1707"]
[Annotator "NA RC"]
[PlyCount "62"]
[EventDate "2024.10.03"]
[EventType "team-swiss"]
[EventRounds "7"]
[EventCountry "GER"]
[SourceTitle "playchess.com"]
[Source "ChessBase"]
[SourceQuality "1"]
[TimeControl "40/5400+30:1800+30"]

1. Nf3 {[%emt 0:00:03]} Nf6 {[%emt 0:00:09]} 2. g3 {[%emt 0:00:13]} g6 {[%emt 0:00:09]} 3. Bg2 {[%emt 0:00:05]} Bg7 {[%emt 0:00:03]} 4. O-O {[%emt 0:00:10]} O-O {[%emt 0:00:53]} 5. d3 {[%emt 0:00:26]} d6 {[%emt 0:01:44]} 6. c3 {[%emt 0:01:34]} c6 {[%emt 0:02:57]} 7. e4 {[%emt 0:01:56]} e5 {[%emt 0:01:59]} 8. a4 {[%emt 0:02:57]} Ne8 {[%emt 0:06:09]} 9. Na3 {[%emt 0:08:58]} h6 {[%emt 0:09:44]} 10. Be3 {[%emt 0:11:26]} f5 {[%emt 0:11:48]} 11. exf5 {[%emt 0:31:28]} gxf5 {[%emt 0:10:12]} 12. Nh4 {[%emt 0:07:32]} f4 {[%emt 0:09:34]} 13. Bd2 {[%emt 0:00:35]} d5 {[%emt 0:13:55]} 14. d4 {[%emt 0:08:47]} fxg3 {[%emt 0:06:18]} 15. hxg3 {[%emt 0:01:38]} exd4 {[%emt 0:01:13]} 16. cxd4 {[%emt 0:01:29]} Qf6 {[%emt 0:05:23]} 17. Nc2 {[%emt 0:01:55]} Nd6 {[%emt 0:02:00]} 18. Bf4 {[%emt 0:03:01]} Nf5 {[%emt 0:02:37]} 19. Be5 {[%emt 0:01:16]} Qf7 {[%emt 0:01:14]} 20. Nxf5 {[%emt 0:01:34]} Bxf5 {[%emt 0:00:56]} 21. Bxg7 {[%emt 0:01:39]} Kxg7 {[%emt 0:01:57]} 22. Ne3 {[%emt 0:00:19]} Bg6 {[%emt 0:01:48]} 23. Qd2 {[%emt 0:01:26]} h5 {[%emt 0:01:52]} 24. b4 {[%emt 0:01:43]} Nd7 {[%emt 0:02:35]} 25. b5 {[%emt 0:00:41]} Nf6 {[%emt 0:01:51]} 26. Rac1 {[%emt 0:04:47]} Qd7 {[%emt 0:02:07]} 27. bxc6 {[%emt 0:01:21]} bxc6 {[%emt 0:00:14]} 28. Qc3 {[%emt 0:01:14]} Rac8 {[%emt 0:01:15]} 29. f3 {[%emt 0:01:20]} Qd6 {[%emt 0:00:48]} 30. Qe1 {[%emt 0:02:04]} Bd3 {[%emt 0:00:52]} 31. f4 {[%emt 0:01:09]} Bg6 {[%emt 0:00:45]} 1/2-1/2